lending/lending_fUSD_20250831
["ID","MTS","AMOUNT","RATE_DAILY","PERIOD"]
[382397362,1756598414414,153.48,0.00013699,2]
[382397363,1756598619034,1994.46,0.00017613,2]
[382397364,1756598620167,-151.06578875,0.00018503,2]
[382397365,1756598622663,-151.0,0.00018503,2]
[382397371,1756599031884,-654.0,0.00018503,2]
[382397372,1756599032139,-1038.39421125,0.00018503,2]
[382397373,1756599032149,-251.0,0.00018949,2]
[382397374,1756599032160,-1994.46,0.00019394,2]
[382397375,1756599032170,-520.0,0.0002,2]
[382397376,1756599032180,-1994.46,0.00020285,2]
[382397377,1756599032190,-300.0,0.00020353,2]
[382397378,1756599032200,-1200.0,0.00020353,2]
[382397379,1756599032210,-2500.0,0.00020354,2]
[382397380,1756599032219,-300.0,0.00020354,2]
[382397381,1756599032229,-251.0,0.00020354,2]
[382397382,1756599032240,-1994.46,0.00021175,2]
[382397383,1756599032250,-510.0,0.0002118,2]
[382397384,1756599032260,-1032.8300886,0.00022066,2]
[382397400,1756599037796,-961.6299114,0.00022066,2]
[382397401,1756599037806,-128.6700886,0.0002237,2]
[382397402,1756599037982,-318.28649691,0.0002237,2]
[382397403,1756599037997,-552.04341449,0.0002237,2]
[382397404,1756599038010,-6.57648511,0.00022956,2]
[382397405,1756599040059,-1628.16559996,0.00022956,2]
[382397406,1756599040072,-359.71791493,0.00022956,2]
[382397407,1756599040082,-979.0,0.0002355,2]
[382397408,1756599040091,-1994.46,0.00023847,2]
[382397409,1756599040101,-958.0,0.0002473,2]
[382397410,1756599040110,-1994.46,0.00024738,2]
[382397411,1756599040120,-1994.46,0.00025628,2]
[382397412,1756599040130,-937.0,0.0002592,2]
[382397413,1756599040139,-153.48,0.00026027,2]
[382397414,1756599040149,-1994.46,0.00026519,2]
[382397415,1756599040159,-916.0,0.000271,2]
[382397416,1756599040168,-1994.46,0.0002741,2]
[382397417,1756599040178,-895.0,0.0002829,2]
[382397443,1756599040432,-1994.46,0.000283,2]
[382397445,1756599040443,-1994.46,0.00029191,2]
[382397447,1756599040454,-874.0,0.0002947,2]
[382397449,1756599040463,-1994.46,0.00030081,2]
[382397451,1756599040473,-173.03,0.00030175,2]
[382397453,1756599040483,-503.63302489,0.0003065,2]
[382397455,1756599040495,-303.40842838,0.0003065,2]
[382397459,1756599044673,-46.95854673,0.0003065,2]
[382397460,1756599044683,-598.46335352,0.00030972,2]
[382397465,1756599045877,-951.56216492,0.00030972,2]
[382397466,1756599045889,-444.43448156,0.00030972,2]
[382397467,1756599045901,-2046.5,0.00031101,2]
[382397468,1756599045911,-1000.0,0.00031175,2]
[382397469,1756599045920,-833.0,0.0003184,2]
[382397470,1756599045929,-305.88131775,0.00031863,2]
[382397471,1756599046101,-1688.57868225,0.00031863,2]
[382397472,1756599046111,-1994.46,0.00032753,2]
[382397473,1756599046123,-246.0,0.000328,5]
[382397475,1756599046132,-812.0,0.0003302,2]
[382397476,1756599046142,-1994.46,0.00033644,2]
[382397477,1756599046152,-200.88,0.00034112,2]
[382397478,1756599046162,-791.0,0.000342,2]
[382397479,1756599046171,-160.0,0.00034495,7]
[382397480,1756599046182,-1994.46,0.00034535,2]
[382397481,1756599046191,-1000.0,0.00035072,2]
[382397482,1756599046201,-770.0,0.0003539,2]
[382397483,1756599046211,-2892.83618488,0.00035455,2]
[382397484,1756599046223,-4664.887554,0.00035455,2]
[382397485,1756599046236,-2311.70000002,0.00035455,2]
[382397486,1756599046249,-333.2068,0.00035455,2]
[382397488,1756599124545,500.0,0.00022376,120]
[382397490,1756599424534,161.75,0.00013699,2]
[382397492,1756599430444,5000.0,0.00033,7]
[382397493,1756599611331,164.8,0.00017516,2]
[382397654,1756600175711,172.0,0.00030136,120]
[382397662,1756600231966,-1200.0,0.00017979,2]
[382397663,1756600231980,-300.0,0.00017979,2]
[382397664,1756600231994,-829.79100719,0.0001798,2]
[382397665,1756600232010,-12636.9544974,0.0001798,2]
[382397666,1756600232025,-460.76973172,0.00017989,2]
[382397667,1756600232038,-500.0,0.00017989,2]
[382397668,1756600232052,-312.96887437,0.00017989,2]
[382397669,1756600232064,-500.0,0.00017989,2]
[382397670,1756600232076,-500.0,0.00017989,2]
[382397671,1756600232087,-500.0,0.00017989,2]
[382397672,1756600232101,-500.0,0.00017989,2]
[382397673,1756600232116,-11321.63244266,0.0001799,2]
[382397674,1756600232128,-250.0,0.00017999,2]
[382397675,1756600232138,-405.00776722,0.00017999,2]
[382397676,1756600232151,-251.0,0.00018,2]
[382397677,1756600232163,-300.0,0.00018,2]
[382397678,1756600232175,-42532.60708757,0.00018,2]
[382397679,1756600232186,-73404.83833027,0.00018,2]
[382397680,1756600232218,-500.0,0.00017989,2]
[382397681,1756600232231,-2524.8,0.00018,2]
[382397682,1756600232246,-702.68973297,0.00018,2]
[382397683,1756600232297,-54524.99999999,0.00018,2]
[382397688,1756600237890,-2639.72490357,0.00018,2]
[382397689,1756600237903,-4484.4,0.00018,2]
[382397690,1756600237945,-1127.4,0.00018,2]
[382397691,1756600238000,-618238.79682944,0.00018,2]
[382397692,1756600238011,-250.0,0.0001808,2]
[382397693,1756600238022,-159.51147212,0.00018302,2]
[382397694,1756600238033,-164.8,0.00018402,2]
[382397695,1756600238043,-251.0,0.00018772,2]
[382397696,1756600238054,-300.0,0.00018772,2]
[382397697,1756600238065,-164.8,0.00019288,2]
[382397698,1756600238076,-2500.0,0.00019777,2]
[382397699,1756600238086,-300.0,0.00019777,2]
[382397700,1756600238097,-250.0,0.00019798,2]
[382397701,1756600238107,-251.0,0.00019799,2]
[382397702,1756600238118,-2500.0,0.00019799,2]
[382397703,1756600238128,-300.0,0.00019799,2]
[382397704,1756600238139,-164.8,0.00020174,2]
[382397705,1756600238150,-500.0,0.00020925,2]
[382397706,1756600238160,-13466.74550457,0.00020933,2]
[382397707,1756600238172,-164.8,0.00021059,2]
[382397708,1756600238185,-160.43,0.00021274,2]
[382397709,1756600238197,-500.0,0.00021473,2]
[382397710,1756600238209,-25583.72,0.00021494,2]
[382397711,1756600238219,-164.8,0.00021945,2]
[382397712,1756600238230,-500.0,0.000226,2]
[382397713,1756600238241,-500.0,0.000226,2]
[382397714,1756600238252,-500.0,0.000226,2]
[382397715,1756600238263,-164.8,0.00022831,2]
[382397716,1756600238274,-600.0,0.00022921,2]
[382397717,1756600238284,-600.0,0.00022921,2]
[382397718,1756600238296,-600.0,0.00022921,2]
[382397719,1756600238307,-361.01237851,0.00022921,2]
[382397720,1756600238320,-151.0,0.00022921,2]
[382397721,1756600238331,-151.0,0.00022921,2]
[382397722,1756600238343,-151.0,0.00022921,2]
[382397723,1756600238355,-151.0,0.00022921,2]
[382397724,1756600238366,-151.0,0.00022921,2]
[382397725,1756600238377,-151.0,0.00022921,2]
[382397726,1756600238388,-200.0,0.00022921,2]
[382397727,1756600238400,-151.0,0.00022921,2]
[382397728,1756600238410,-151.0,0.00022921,2]
[382397729,1756600238420,-151.0,0.00022921,2]
[382397730,1756600238430,-151.0,0.00022921,2]
[382397731,1756600238439,-151.0,0.00022921,2]
[382397732,1756600238449,-500.0,0.00022921,2]
[382397733,1756600238459,-482.99498356,0.00022921,2]
[382397734,1756600238469,-152.30241956,0.00022921,2]
[382397735,1756600238478,-500.0,0.00022976,2]
[382397736,1756600238488,-500.0,0.00023,2]
[382397740,1756600238778,-349.8991239,0.00023,2]
[382397741,1756600238795,-500.0,0.00023,2]
[382397742,1756600238809,-500.0,0.00023,2]
[382397743,1756600238819,-500.0,0.00023,2]
[382397744,1756600238828,-500.0,0.00023031,2]
[382397745,1756600238838,-500.0,0.00023086,2]
[382397746,1756600238847,-500.0,0.00023141,2]
[382397747,1756600238856,-1000.0,0.00023148,2]
[382397748,1756600238866,-1000.0,0.00023148,2]
[382397749,1756600238875,-1000.0,0.00023148,2]
[382397750,1756600238884,-500.0,0.00023196,2]
[382397751,1756600238893,-500.0,0.00023548,2]
[382397752,1756600238902,-586.0747174,0.00023548,2]
[382397753,1756600238911,-1500.0,0.00023696,2]
[382397754,1756600238921,-1009.73992437,0.00023696,2]
[382397755,1756600238931,-500.0,0.00023696,2]
[382397756,1756600238940,-164.8,0.00023717,2]
[382397757,1756600238949,-13466.74550457,0.00023886,2]
[382397758,1756600238958,-402.0,0.00024,4]
[382397759,1756600238967,-5000.0,0.00024,5]
[382397760,1756600238976,-159.51147212,0.00024222,2]
[382397761,1756600238985,-1826.19604387,0.00024244,2]
[382397762,1756600238994,-164.8,0.00024602,2]
[382397763,1756600239003,-154.1787174,0.000247,2]
[382397764,1756600239012,-257714.247936,0.000248,2]
[382397765,1756600239022,-641.54094168,0.000248,2]
[382397766,1756600239032,-740.03,0.000248,7]
[382397767,1756600239040,-500.0,0.00024873,2]
[382397768,1756600239051,-151.8,0.0002489,2]
[382397769,1756600239059,-255.50097301,0.0002489,2]
[382397770,1756600239068,-112062.69413,0.000249,2]
[382397771,1756600239078,-1000.0,0.00025421,2]
[382397772,1756600239087,-164.8,0.00025488,2]
[382397773,1756600239096,-648.58639073,0.00025968,2]
[382397774,1756600239105,-164.8,0.00026374,2]
[382397775,1756600239114,-3971.68,0.00026543,2]
[382397776,1756600239123,-11206.269413,0.00026791,2]
[382397777,1756600239133,-1000.0,0.00026801,2]
[382397778,1756600239142,-13466.74550457,0.00026839,2]
[382397779,1756600239151,-164.8,0.0002726,2]
[382397780,1756600239161,-173.03,0.000273,2]
[382397781,1756600239171,-161.75,0.00027397,2]
[382397782,1756600239180,-154.17871733,0.000276,2]
[382397783,1756600239189,-164.8,0.00028145,2]
[382397784,1756600239199,-150.0,0.00028352,2]
[382397785,1756600239208,-200.0,0.00028374,2]
[382397786,1756600239217,-51542.8495873,0.00028457,2]
[382397787,1756600239227,-89650.1553042,0.00028457,2]
[382397788,1756600239236,-151.0,0.00028467,7]
[382397789,1756600239245,-151.0,0.00028467,7]
[382397790,1756600239255,-151.0,0.00028467,7]
[382397791,1756600239264,-151.0,0.00028467,7]
[382397792,1756600239274,-174.797372,0.00028467,7]
[382397793,1756600239283,-174.797372,0.00028467,7]
[382397794,1756600239292,-174.797372,0.00028467,7]
[382397795,1756600239301,-174.797372,0.00028467,7]
[382397796,1756600239311,-218.065294,0.00028467,2]
[382397797,1756600239320,-197542.4,0.00028467,2]
[382397798,1756600239329,-641.54094162,0.00028817,2]
[382397799,1756600239339,-1023.25,0.0002899,2]
[382397800,1756600239348,-164.8,0.00029031,2]
[382397801,1756600239358,-740.03,0.000291,7]
[382397802,1756600239367,-13466.74550457,0.00029792,2]
[382397803,1756600239376,-11206.269413,0.00029901,2]
[382397804,1756600239385,-151.0,0.00029908,7]
[382397805,1756600239395,-4355.2166051,0.00029911,2]
[382397806,1756600239404,-15205.7732714,0.00029911,2]
[382397807,1756600239413,-164.8,0.00029917,2]
[382397808,1756600239423,-159.51147212,0.00030141,2]
[382397809,1756600239432,-1000.0,0.00030151,2]
[382397810,1756600239441,-901.059,0.00030276,25]
[382397811,1756600239450,-154.17871733,0.000305,2]
[382397812,1756600239459,-164.8,0.00030803,2]
[382397813,1756600239469,-11206.269413,0.00031171,2]
[382397814,1756600239479,-150.0,0.0003142,2]
[382397815,1756600239488,-999.99,0.00031426,2]
[382397816,1756600239498,-164.8,0.00031688,2]
[382397817,1756600239507,-11206.269413,0.00031812,2]
[382397818,1756600239516,-322.6107,0.00031822,2]
[382397819,1756600239525,-151.60989685,0.00031822,2]
[382397820,1756600239536,-160.0,0.00031822,2]
[382397821,1756600239546,-1000.0,0.00031822,2]
[382397822,1756600239555,-1000.0,0.00031822,2]
[382397823,1756600239564,-151.0,0.00031822,2]
[382397824,1756600239574,-1000.0,0.00031822,2]
[382397825,1756600239584,-1000.0,0.00031822,2]
[382397826,1756600239593,-1000.0,0.00031822,2]
[382397827,1756600239603,-1000.0,0.00031822,2]
[382397828,1756600239612,-1000.0,0.00031822,2]
[382397829,1756600239622,-151.0,0.00031822,2]
[382397830,1756600239634,-1000.0,0.00031822,2]
[382397831,1756600239644,-1000.0,0.00031822,2]
[382397832,1756600239653,-637.46487105,0.00031822,2]
[382397833,1756600239662,-1000.0,0.00031822,2]
[382397834,1756600239671,-1000.0,0.00031822,2]
[382397835,1756600239682,-9552.16786547,0.00031822,2]
[382397836,1756600239691,-367.91934601,0.00031822,2]
[382397837,1756600239702,-151.0,0.00031822,2]
[382397838,1756600239711,-678.73599631,0.00031822,2]
[382397839,1756600239720,-250.0,0.00031822,2]
[382397840,1756600239730,-250.0,0.00031822,2]
[382397841,1756600239739,-284.23212051,0.00031822,2]
[382397842,1756600239748,-900.00610444,0.00031822,2]
[382397843,1756600239757,-721.12765535,0.00031822,2]
[382397844,1756600239766,-151.0,0.00031822,2]
[382397845,1756600239775,-151.0,0.00031822,2]
[382397846,1756600239784,-277.35679052,0.00031822,2]
[382397847,1756600239794,-151.0,0.00031822,2]
[382397848,1756600239803,-151.0,0.00031822,2]
[382397849,1756600239813,-151.0,0.00031822,2]
[382397850,1756600239822,-151.0,0.00031822,2]
[382397851,1756600239831,-151.0,0.00031822,2]
[382397852,1756600239840,-151.0,0.00031822,2]
[382397853,1756600239849,-151.0,0.00031822,2]
[382397854,1756600239858,-151.0,0.00031822,2]
[382397855,1756600239867,-151.0,0.00031822,2]
[382397856,1756600239877,-151.0,0.00031822,2]
[382397857,1756600239887,-151.0,0.00031822,2]
[382397858,1756600239897,-151.0,0.00031822,2]
[382397859,1756600239907,-156.587,0.00031877,2]
[382397860,1756600239918,-9905.5980765,0.00031877,2]
[382397861,1756600239928,-11206.269413,0.00031922,2]
[382397862,1756600239939,-162.380719,0.00031932,2]
[382397863,1756600239950,-10272.10520533,0.00031932,2]
[382397864,1756600239960,-168.3888056,0.00031987,2]
[382397865,1756600239969,-10652.17309792,0.00031987,2]
[382397866,1756600239978,-11206.269413,0.00032032,2]
[382397867,1756600239988,-174.61919141,0.00032042,2]
[382397868,1756600239997,-11046.30350255,0.00032042,2]
[382397869,1756600240008,-4000.0,0.00032062,4]
[382397870,1756600240022,-181.08010149,0.00032097,2]
[382397871,1756600240034,-11455.01673214,0.00032097,2]
[382397872,1756600240044,-11206.269413,0.00032142,2]
[382397873,1756600240054,-187.78006525,0.00032152,2]
[382397874,1756600240066,-11878.85235123,0.00032152,2]
[382397875,1756600240079,-11206.269413,0.00032197,2]
[382397876,1756600240088,-1000.0,0.00032206,2]
[382397877,1756600240097,-194.72792766,0.00032207,2]
[382397878,1756600240108,-12318.36988823,0.00032207,2]
[382397879,1756600240120,-11206.269413,0.00032262,2]
[382397880,1756600240130,-201.93286099,0.00032262,2]
[382397881,1756600240141,-12774.14957409,0.00032262,2]
[382397882,1756600240151,-209.40437684,0.00032317,2]
[382397883,1756600240163,-13246.79310833,0.00032317,2]
[382397884,1756600240172,-11206.269413,0.00032362,2]
[382397885,1756600240182,-151.0,0.0003237,2]
[382397886,1756600240191,-151.0,0.0003237,2]
[382397887,1756600240201,-217.15233878,0.00032372,2]
[382397888,1756600240210,-13736.92445334,0.00032372,2]
[382397889,1756600240219,-241.0082625,0.00032427,2]
[382397890,1756600240229,-740.03,0.000325,7]
[382397891,1756600240239,-164.8,0.00032574,2]
[382397893,1756600240248,-216.37426972,0.00032622,2]
[382397895,1756600240258,-864.63158179,0.00032622,2]
[382397897,1756600240268,-13466.74550457,0.00032745,2]
[382397899,1756600240278,-641.54094162,0.00032833,2]
[382397901,1756600240288,-151.0,0.00032918,2]
[382397903,1756600240298,-151.0,0.00032918,2]
[382397905,1756600240308,-334.5472959,0.00033191,2]
[382397907,1756600240317,-160.0,0.00033191,2]
[382397909,1756600240327,-287.61899177,0.00033191,2]
[382397911,1756600240337,-409.97273087,0.00033343,2]
[382397913,1756600240347,-154.17871733,0.000334,5]
[382397915,1756600240356,-164.8,0.0003346,2]
[382397917,1756600240365,-272.58118792,0.00033466,2]
[382397919,1756600240375,-165.34696358,0.00033466,2]
[382397921,1756600240384,-1000.0,0.00033502,2]
[382397923,1756600240394,-11206.269413,0.00033772,2]
[382397925,1756600240403,-15205.7732714,0.00033782,2]
[382397927,1756600240412,-4355.2166051,0.00033799,2]
[382397929,1756600240422,-11206.269413,0.0003384,2]
[382397931,1756600240431,-18665.43,0.00033844,2]
[382397933,1756600240441,-11274.17,0.00033844,2]
[382397935,1756600240450,-151.0,0.00033844,7]
[382397937,1756600240460,-174.797372,0.00033844,7]
[382397939,1756600240469,-174.797372,0.00033844,7]
[382397941,1756600240479,-174.797372,0.00033844,7]
[382397943,1756600240489,-174.797372,0.00033844,7]
[382397945,1756600240500,-500.93939924,0.000341,5]
[382397947,1756600240509,-311.54150084,0.00034245,15]
[382397949,1756600240519,-172.86,0.00034266,120]
[382397951,1756600240529,-5691.24,0.00034315,2]
[382397953,1756600240540,-164.8,0.00034346,2]
[382397955,1756600240550,-234.98,0.00034346,2]
[382397957,1756600240559,-666.0,0.00034409,3]
[382397959,1756600240568,-740.03,0.000345,14]
[382397961,1756600240578,-250.0,0.0003453,2]
[382397963,1756600240587,-11206.269413,0.0003455,2]
[382397965,1756600240597,-500.0,0.00034559,2]
[382397967,1756600240607,-346.92554585,0.0003456,2]
[382397968,1756600240617,-160.0,0.0003456,2]
[382397969,1756600240629,-298.26089446,0.0003456,2]
[382397970,1756600240640,-158.54000876,0.00034561,2]
[382397971,1756600240651,-2751.0,0.00034664,120]
[382397972,1756600240661,-500.22314744,0.00034673,5]
[382397973,1756600240671,-500.0,0.00034673,5]
[382397974,1756600240681,-500.0,0.00034673,5]
[382397975,1756600240692,-160.0,0.00034695,7]
[382397976,1756600240705,-1000.0,0.000349,2]
[382397977,1756600240715,-7079.1,0.00034912,2]
[382397978,1756600240726,-853.64364425,0.00035023,2]
[382397979,1756600240735,-7000.0,0.000351,2]
[382397980,1756600240744,-634.8836414,0.0003511,2]
[382397981,1756600240754,-853.64364426,0.0003518,2]
[382397982,1756600240766,-500.79676878,0.00035221,5]
[382397983,1756600240776,-1000.0,0.00035221,5]
[382397984,1756600240785,-1250.0,0.00035375,4]
[382397985,1756600240795,-1250.0,0.00035375,4]
[382397986,1756600240804,-500.0,0.0003542,2]
[382397987,1756600240813,-500.0,0.00035473,5]
[382397988,1756600240823,-1000.0,0.000355,7]
[382397989,1756600240836,-13466.74550457,0.00035698,2]
[382397990,1756600240845,-500.25359507,0.0003575,5]
[382397991,1756600240854,-1500.0,0.00035768,5]
[382397992,1756600240863,-870.6407,0.00035845,2]
[382397993,1756600240873,-311.54150077,0.00035873,15]
[382397994,1756600240882,-359.76179104,0.00035929,2]
[382397995,1756600240891,-160.0,0.00035929,2]
[382397996,1756600240902,-309.29654756,0.00035929,2]
[382397997,1756600240912,-160.0,0.00035953,2]
[382397998,1756600240924,-212.33763476,0.00035953,2]
[382397999,1756600240934,-2200.86603346,0.00035979,2]
[382398000,1756600240943,-161.0,0.00036,30]
[382398001,1756600240953,-161.0,0.00036,15]
[382398002,1756600240963,-1000.0,0.0003601,2]
[382398003,1756600240973,-1301.8605222,0.00036056,8]
[382398004,1756600240982,-159.51147212,0.00036061,2]
[382398005,1756600240992,-234.98,0.00036063,2]
[382398006,1756600241001,-7000.0,0.000361,2]
[382398007,1756600241010,-614.0,0.000362,2]
[382398008,1756600241019,-1000.0,0.000362,7]
[382398009,1756600241029,-154.17871733,0.000363,9]
[382398010,1756600241038,-500.0,0.00036316,5]
[382398011,1756600241047,-1674.19,0.00036494,60]
[382398012,1756600241057,-1674.19,0.00036494,60]
[382398013,1756600241066,-1674.19,0.00036494,60]
[382398014,1756600241075,-1674.19,0.00036494,60]
[382398015,1756600241084,-1674.19,0.00036494,60]
[382398016,1756600241094,-1674.19,0.00036494,60]
[382398017,1756600241103,-1674.19,0.00036494,60]
[382398018,1756600241112,-1674.19,0.00036494,60]
[382398019,1756600241121,-1674.19,0.00036494,60]
[382398020,1756600241130,-1674.19,0.00036494,60]
[382398021,1756600241140,-1674.19,0.00036494,60]
[382398022,1756600241148,-1674.19,0.00036494,60]
[382398023,1756600241158,-1674.19,0.00036494,60]
[382398024,1756600241167,-1674.19,0.00036494,60]
[382398025,1756600241176,-1674.19,0.00036494,60]
[382398026,1756600241185,-1674.19,0.00036494,60]
[382398027,1756600241195,-1674.19,0.00036494,60]
[382398028,1756600241204,-1674.19,0.00036494,60]
[382398029,1756600241214,-1674.19,0.00036494,60]
[382398030,1756600241223,-1674.19,0.00036494,60]
[382398031,1756600241233,-1674.19,0.00036494,60]
[382398032,1756600241243,-1674.19,0.00036494,60]
[382398033,1756600241253,-1674.19,0.00036494,60]
[382398034,1756600241262,-1674.1928771,0.00036494,60]
[382398035,1756600241271,-1000.0,0.00036636,2]
[382398036,1756600241281,-1000.0,0.00036735,2]
[382398037,1756600241291,-1000.0,0.000368,7]
[382398038,1756600241300,-158.193021,0.00036827,2]
[382398039,1756600241310,-8808.4098818,0.00036827,2]
[382398040,1756600241319,-151.0,0.00036836,2]
[382398041,1756600241329,-571.95436155,0.00036836,2]
[382398042,1756600241339,-641.54094162,0.0003685,2]
[382398043,1756600241348,-1000.0,0.00036852,2]
[382398044,1756600241358,-3505.70305683,0.0003686,2]
[382398045,1756600241368,-2230.36378,0.00036888,30]
[382398046,1756600241378,-20910.34475729,0.000369,120]
[382398047,1756600241387,-13838.61188203,0.0003691,2]
[382398048,1756600241397,-1083.96302243,0.00036956,2]
[382398049,1756600241407,-1361.0,0.00037,120]
[382398050,1756600241416,-151.0,0.00037008,30]
[382398051,1756600241425,-151.0,0.00037008,30]
[382398052,1756600241435,-160.068743,0.00037008,30]
[382398053,1756600241445,-160.068743,0.00037008,30]
[382398054,1756600241454,-160.068743,0.00037008,30]
[382398055,1756600241463,-160.068743,0.00037008,30]
[382398056,1756600241473,-151.0,0.00037008,30]
[382398057,1756600241482,-151.0,0.00037008,30]
[382398058,1756600241491,-151.0,0.00037008,30]
[382398059,1756600241501,-1362.0,0.00037018,7]
[382398060,1756600241510,-151.8,0.00037046,2]
[382398061,1756600241520,-155.0,0.00037056,2]
[382398062,1756600241530,-175.0,0.00037056,120]
[382398063,1756600241540,-120077.25670131,0.00037056,2]
[382398064,1756600241550,-23590.14869493,0.00037056,120]
[382398065,1756600241559,-1279.82420664,0.00037056,120]
[382398066,1756600241569,-89672.07588631,0.00037056,30]
[382398067,1756600241578,-1210.0,0.00037056,2]
[382398068,1756600241588,-710.82180442,0.00037056,2]
[382398069,1756600241597,-2063.32493079,0.00037056,30]
[382398070,1756600241607,-366.02345614,0.00037056,2]
[382398071,1756600241616,-1321.8886374,0.00037056,120]
[382398072,1756600241626,-6875.7738904,0.00037056,2]
[382398073,1756600241639,-171558.44654184,0.00037056,2]
[382398074,1756600241650,-15086.11165527,0.00037056,2]
[382398075,1756600241659,-5355.83552371,0.00037056,2]
[382398076,1756600241670,-231.38470154,0.00037056,2]
[382398077,1756600241680,-175.60205485,0.00037056,2]
[382398078,1756600241691,-6000.0,0.00037056,2]
[382398079,1756600241703,-379.37913684,0.00037056,2]
[382398080,1756600241713,-1485.38625291,0.00037056,2]
[382398081,1756600241723,-1044.4084376,0.00037056,2]
[382398082,1756600241733,-1189.59449916,0.00037056,2]
[382398083,1756600241742,-15206.14743892,0.00037056,2]
[382398084,1756600241760,-3086.6519168,0.00037056,2]
[382398085,1756600241771,-569.13716749,0.00037056,2]
[382398086,1756600241781,-3357.68948733,0.00037056,2]
[382398087,1756600241792,-150.0,0.00037056,2]
[382398088,1756600241802,-7847.04142375,0.00037056,2]
[382398089,1756600241811,-632.97160723,0.00037056,2]
[382398090,1756600241820,-216.99658326,0.00037056,2]
[382398091,1756600241830,-165939.91126936,0.00037056,2]
[382398092,1756600241840,-7774.73760561,0.00037056,2]
[382398093,1756600241850,-10675.80402987,0.00037056,2]
[382398094,1756600241859,-594.05241888,0.00037056,120]
[382398095,1756600241869,-1616.62335888,0.00037056,120]
[382398096,1756600241879,-151.0,0.00037056,30]
[382398097,1756600241890,-171.15782,0.00037056,30]
[382398098,1756600241899,-160.068743,0.00037056,30]
[382398099,1756600241909,-160.068743,0.00037056,30]
[382398100,1756600241919,-160.068743,0.00037056,30]
[382398101,1756600241928,-160.068743,0.00037056,30]
[382398102,1756600241938,-151.0,0.00037056,30]
[382398103,1756600241947,-151.0,0.00037056,30]
[382398104,1756600241958,-174.797372,0.00037056,30]
[382398105,1756600241968,-174.797372,0.00037056,30]
[382398106,1756600241978,-174.797372,0.00037056,30]
[382398107,1756600241988,-174.797372,0.00037056,30]
[382398108,1756600241998,-174.797372,0.00037056,30]
[382398109,1756600242009,-174.797372,0.00037056,30]
[382398110,1756600242019,-174.797372,0.00037056,30]
[382398111,1756600242029,-174.797372,0.00037056,30]
[382398112,1756600242038,-2230.36378,0.00037088,30]
[382398113,1756600242048,-247.81819,0.00037088,7]
[382398114,1756600242059,-212.33763476,0.000371,3]
[382398115,1756600242068,-22599.41,0.000371,14]
[382398116,1756600242078,-7000.0,0.000371,2]
[382398117,1756600242087,-1362.0,0.00037112,2]
[382398118,1756600242097,-2182.0,0.00037181,2]
[382398119,1756600242106,-1362.0,0.0003719,7]
[382398120,1756600242117,-168.75899278,0.000372,120]
[382398121,1756600242127,-168.75899276,0.000372,120]
[382398122,1756600242137,-168.75899276,0.0003723,120]
[382398123,1756600242146,-2230.36378,0.00037288,30]
[382398124,1756600242311,-247.81819,0.00037288,7]
[382398125,1756600242328,-373.07297731,0.00037298,2]
[382398126,1756600242338,-200.55954001,0.00037298,2]
[382398127,1756600242347,-320.74051982,0.00037298,2]
[382398128,1756600242357,-602.0,0.0003738,2]
[382398129,1756600242366,-1362.0,0.00037386,7]
[382398130,1756600242376,-2182.0,0.00037407,2]
[382398131,1756600242385,-209.75,0.00037436,2]
[382398132,1756600242394,-2230.36378,0.00037488,30]
[382398133,1756600242404,-247.81819,0.00037488,7]
[382398134,1756600242414,-311.54150077,0.00037502,15]
[382398135,1756600242423,-2182.0,0.00037504,120]